bitfinex/quotes_ETHUSD_20241124
["timestamp","ask_amount","ask_price","bid_price","bid_amount"]
[1732417192218,1.22469485,3425.4,3424.5,0.00261945]
[1732417193102,1.22469485,3425.4,3424.6,0.7839]
[1732417193509,1.22469485,3425.4,3424.6,1.0748]
[1732417193843,1.22469485,3425.4,3424.7,0.7839]
[1732417198144,1.22469485,3425.1,3424.7,0.7839]
[1732417200424,1.26216267,3425.9,3424.7,0.7839]
[1732417200623,1.22469485,3425.5,3424.7,0.7839]
[1732417201012,1.22469485,3424.9,3424.7,0.7839]
[1732417201211,1.22469485,3424.9,3424.5,0.00261945]
[1732417204675,0.7851,3424.8,3424.5,0.00261945]
[1732417204844,0.74846,3424.8,3424.5,0.00261945]
[1732417205022,0.74845985,3424.8,3424.5,0.00261945]
[1732417208062,1.22469485,3424.6,3424.5,0.00261945]
[1732417208228,0.26966795,3424.6,3424.5,0.00261945]
[1732417208422,1.49440533,3424.6,3424.5,0.00261945]
[1732417209466,0.7851,3425.2,3424.5,0.00261945]
[1732417209630,1.22469485,3424.7,3424.5,0.00261945]
[1732417209834,2.00979485,3424.7,3424.5,0.00261945]
[1732417210528,0.26955616,3424.6,3424.5,0.00261945]
[1732417213345,0.26933629,3424.6,3424.5,0.00261945]
[1732417213551,2.00979485,3424.7,3424.5,0.00261945]
[1732417213759,0.26934051,3424.6,3424.5,0.00261945]
[1732417213974,2.00979485,3424.7,3424.5,0.00261945]
[1732417214278,0.2693754,3424.6,3424.5,0.00261945]
[1732417214872,0.26932066,3424.6,3424.5,0.00261945]
[1732417215063,1.08642066,3424.6,3424.5,0.00261945]
[1732417215242,2.3110562,3424.6,3424.5,0.00261945]
[1732417215548,2.74187436,3424.6,3424.5,0.00261945]
[1732417215965,0.8171,3424.5,3422.5,0.7709]
[1732417216168,1.22469485,3423.3,3422.5,0.7709]
[1732417217038,1.22469485,3423.1,3422.5,0.7709]
[1732417218742,2.78887422,3423.4,3422.5,0.7709]
[1732417223259,2.76017422,3423.4,3422.5,0.7709]
[1732417223457,2.76017418,3423.4,3422.5,0.7709]
[1732417226296,0.8171,3423.3,3422.5,0.7709]
[1732417227804,1.588,3423.3,3422.5,0.7709]
[1732417228965,2.76017418,3423.4,3422.5,0.7709]
[1732417229178,0.7709,3423.2,3422.5,0.7709]
[1732417231109,0.7709,3423.3,3422.5,0.7709]
[1732417231482,2.76017418,3423.4,3422.5,0.7709]
[1732417231685,3.53107418,3423.4,3422.5,0.7709]
[1732417232404,0.8171,3423.3,3422.5,0.7709]
[1732417232726,2.78887422,3423.0,3422.5,0.7709]
[1732417233413,0.8171,3422.9,3422.2,0.7709]
[1732417234292,0.8171,3422.5,3421.2,1.0618]
[1732417234498,0.8171,3422.5,3421.8,0.7709]
[1732417236610,0.8160195,3422.5,3421.8,0.7709]
[1732417239723,0.8160195,3422.5,3421.6,0.824]
[1732417240020,2.78887422,3422.6,3419.9,0.824]
[1732417240021,0.7683,3422.3,3419.9,0.824]
[1732417240221,2.78887422,3421.7,3420.0,0.85323314]
[1732417240728,1.22698608,3421.5,3420.0,0.85323314]
[1732417240907,0.7683,3422.3,3420.2,0.1]
[1732417241106,0.7683,3422.3,3419.9,0.1]
[1732417241107,1.22698608,3421.8,3420.5,0.824]
[1732417241310,1.22698608,3421.5,3420.6,0.80322656]
[1732417241533,1.22698608,3421.8,3420.6,0.80322656]
[1732417242411,0.7683,3422.8,3420.6,0.90322656]
[1732417242611,1.22698608,3422.1,3420.6,0.90322656]
[1732417244536,1.22698608,3422.1,3420.7,0.924]
[1732417244708,2.79064244,3422.2,3420.9,0.824]
[1732417244910,2.79064244,3422.2,3421.0,0.02922347]
[1732417245146,2.79064244,3422.2,3421.1,0.8049]
[1732417245353,0.7683,3422.8,3421.2,0.02922348]
[1732417245512,2.79064244,3422.3,3421.2,0.8049]
[1732417246248,2.79064244,3421.9,3421.2,0.8049]
[1732417248838,2.78956244,3421.9,3421.2,0.8049]
[1732417249052,2.78928822,3421.9,3421.2,0.8049]
[1732417250070,2.78885509,3421.9,3421.2,0.8049]
[1732417253376,2.78885509,3421.9,3420.1,0.1]
[1732417253377,2.79064244,3423.2,3421.4,0.2909]
[1732417253678,0.26940269,3423.1,3421.9,0.7774]
[1732417253884,2.79064244,3423.2,3422.0,1.00508893]
[1732417254179,2.79064244,3423.2,3422.1,0.7774]
[1732417254393,0.8051,3423.3,3422.1,0.7774]
[1732417254394,2.79064244,3422.8,3422.1,0.95564889]
[1732417255645,2.79064244,3422.8,3422.1,0.68870001]
[1732417255885,2.79064244,3422.8,3422.2,0.7774]
[1732417256247,2.79064244,3423.2,3422.2,0.7774]
[1732417257105,2.79064244,3423.2,3422.2,1.28785112]
[1732417257262,2.79064244,3423.2,3422.3,0.7774]
[1732417258359,2.79064244,3423.2,3422.4,0.7774]
[1732417258559,2.79064244,3423.2,3422.6,0.7774]
[1732417258875,2.79064244,3423.2,3422.8,0.7774]
[1732417259780,0.7774,3423.5,3422.8,0.7774]
[1732417259980,2.79064244,3423.6,3422.8,0.7774]
[1732417265026,3.59574244,3423.6,3422.8,0.7774]
[1732417265316,2.79064244,3423.2,3421.9,0.51045112]
[1732417265523,2.79064244,3423.2,3422.0,0.7774]
[1732417268184,2.79064244,3423.2,3421.2,0.60150575]
[1732417268185,2.79064244,3423.2,3422.1,0.51045112]
[1732417268520,2.79064244,3423.2,3422.2,0.7774]
[1732417269028,2.79064244,3422.8,3422.2,0.7774]
[1732417269716,2.79064244,3422.4,3421.8,0.7774]
[1732417270435,2.79064244,3422.4,3421.2,0.7774]
[1732417270719,2.79064244,3422.4,3421.2,1.28785112]
[1732417271418,2.79064244,3422.4,3421.2,0.7774]
[1732417271794,2.79064244,3422.4,3421.3,0.7774]
[1732417273435,2.79064244,3422.4,3421.4,0.831]
[1732417273639,2.79064244,3422.4,3421.5,0.831]
[1732417274894,2.78928842,3422.4,3421.5,0.831]
[1732417276741,2.78928842,3422.4,3421.6,0.794]
[1732417280346,0.8043,3422.3,3421.6,0.794]
[1732417281353,0.8043,3422.3,3421.2,0.794]
[1732417281354,2.79064244,3422.0,3421.2,0.794]
[1732417285856,1.91564244,3422.0,3421.2,0.794]
[1732417286055,0.43088184,3422.9,3421.2,0.794]
[1732417286254,0.8043,3423.3,3421.0,0.49222316]
[1732417286255,3.05995769,3422.8,3421.4,0.794]
[1732417286549,1.07361525,3422.7,3421.4,0.794]
[1732417286773,2.79064244,3422.4,3421.4,0.794]
[1732417288665,0.26928792,3422.3,3421.4,0.794]
[1732417288866,2.79064244,3422.4,3421.4,0.794]
[1732417289066,2.79064244,3422.0,3421.4,0.794]
[1732417289366,3.59494244,3422.0,3420.9,0.794]
[1732417290676,2.79064244,3422.0,3420.9,0.794]
[1732417292241,0.8043,3422.8,3421.1,0.794]
[1732417292447,2.79064244,3422.6,3421.2,0.48536095]
[1732417292653,0.26930577,3422.5,3421.3,0.794]
[1732417292970,2.79064244,3422.6,3421.3,0.794]
[1732417293167,0.26931023,3422.5,3421.3,0.794]
[1732417293364,2.79064244,3422.6,3421.3,0.794]
[1732417293670,0.26945259,3422.5,3421.3,0.794]
[1732417293872,2.79064244,3422.6,3421.3,0.794]
[1732417294382,0.26946117,3422.5,3421.3,0.794]
[1732417294667,0.26964573,3422.4,3421.3,0.794]
[1732417294971,2.79064244,3422.6,3421.3,0.794]
[1732417295155,0.26964407,3422.5,3421.3,0.794]
[1732417295362,0.26964407,3422.4,3421.3,0.794]
[1732417295559,2.79064244,3422.6,3421.3,0.794]
[1732417295768,0.26973795,3422.5,3421.3,0.794]
[1732417295945,0.26973795,3422.5,3421.4,0.33690465]
[1732417296148,0.26973795,3422.4,3421.5,0.33690465]
[1732417296374,2.79064244,3422.6,3421.6,1.13810465]
[1732417296588,0.26991438,3422.5,3421.7,0.8012]
[1732417296878,0.26991438,3422.4,3421.7,0.8012]
[1732417297054,0.26991438,3422.3,3421.7,0.8012]
[1732417297249,0.43187042,3422.5,3421.7,0.8012]
[1732417297456,0.26999632,3422.4,3421.7,0.8012]
[1732417297779,0.27000456,3422.3,3421.7,0.8012]
[1732417297994,2.79064244,3422.6,3421.7,0.8012]
[1732417298208,0.27001409,3422.5,3421.7,0.8012]
[1732417298497,0.27001409,3422.4,3421.7,1.13810465]
[1732417298797,0.27001409,3422.3,3421.7,0.8012]
[1732417299007,0.43202255,3422.5,3421.7,0.8012]
[1732417299191,0.27012201,3422.4,3421.7,0.8012]
[1732417299364,0.27012201,3422.3,3421.7,0.8012]
[1732417299566,0.27012201,3422.2,3421.7,1.13810465]
[1732417299897,0.43202255,3422.5,3421.8,0.33690465]
[1732417300124,0.43202255,3422.5,3421.9,0.8012]
[1732417300125,0.27021747,3422.4,3421.9,0.8012]
[1732417300258,0.27021747,3422.3,3421.9,0.8012]
[1732417300463,3.06085991,3422.2,3421.4,1.13810465]
[1732417300663,0.27021747,3422.1,3421.5,0.33690465]
[1732417300966,3.59554244,3422.2,3421.5,0.33690465]
[1732417300967,0.27021747,3422.0,3421.5,0.33690465]
[1732417301167,3.59554244,3422.2,3421.5,0.33690465]
[1732417301399,0.27022779,3422.1,3421.5,0.33690465]
[1732417301572,0.27022779,3422.0,3421.5,0.33690465]
[1732417301779,0.27022964,3421.9,3421.5,0.33728381]
[1732417302090,3.59554244,3422.2,3421.5,0.33728381]
[1732417302277,0.27021989,3422.1,3421.5,0.33728381]
[1732417302479,0.27021989,3422.0,3421.5,0.33728381]
[1732417302703,3.59554244,3422.2,3421.4,0.8012]
[1732417302923,0.70251954,3422.1,3421.4,0.8012]
[1732417303069,0.27019982,3422.0,3421.4,0.8012]
[1732417303403,0.27019982,3422.0,3420.8,0.33728498]
[1732417303404,2.79064244,3422.6,3421.6,0.8012]
[1732417303594,0.27026979,3422.5,3421.6,1.13848498]
[1732417303772,0.27026979,3422.4,3421.6,0.8012]
[1732417303975,0.27026979,3422.3,3421.6,0.8012]
[1732417304171,0.27026979,3422.2,3421.6,0.8012]
[1732417304392,0.27026979,3422.1,3421.6,0.8012]
[1732417304568,0.27026979,3422.0,3421.6,0.8012]
[1732417304767,0.43243167,3422.5,3421.6,1.13848498]
[1732417305007,0.27029306,3422.4,3421.6,0.8012]
[1732417305299,0.27029306,3422.3,3421.6,0.8012]
[1732417305563,0.8049,3422.1,3421.6,0.8012]
[1732417305690,0.27029306,3422.0,3421.6,0.8012]
[1732417305892,0.27029306,3421.9,3421.6,0.8012]
[1732417306117,0.8049,3422.1,3421.6,0.8012]
[1732417306330,0.27029384,3422.0,3421.6,0.8012]
[1732417306634,1.23737015,3422.1,3421.6,0.8012]
[1732417306635,0.27029384,3421.9,3421.6,0.8012]
[1732417306935,0.27029384,3421.8,3421.6,0.8012]
[1732417307140,1.23737015,3422.1,3421.6,0.8012]
[1732417307342,0.27030583,3422.0,3421.6,0.8012]
[1732417307509,0.27030583,3421.9,3421.6,0.8012]
[1732417307704,0.27030583,3421.8,3421.6,0.8012]
[1732417307909,1.23737015,3422.1,3421.6,0.8012]
[1732417308226,0.27032428,3422.0,3421.6,0.8012]
[1732417308530,0.8049,3422.1,3421.6,0.8012]
[1732417308732,0.27033397,3421.9,3421.6,0.8012]
[1732417308942,0.27033397,3421.8,3421.6,0.8012]
[1732417309127,1.23635436,3422.1,3421.6,0.8012]
[1732417309351,0.27026792,3422.0,3421.6,0.8012]
[1732417309529,1.23608023,3422.1,3421.6,0.8012]
[1732417309530,0.27026792,3421.9,3421.6,0.8012]
[1732417309741,0.27026792,3421.8,3421.6,0.8012]
[1732417310053,0.43253436,3422.1,3421.6,0.8012]
[1732417310228,0.27027459,3422.0,3421.6,0.8012]
[1732417310435,0.27027459,3421.9,3421.6,0.8012]
[1732417310754,0.43253436,3422.1,3421.6,0.8012]
[1732417310964,0.27027248,3422.0,3421.6,0.8012]
[1732417311136,0.27027248,3421.9,3421.6,0.8012]
[1732417311324,2.79064244,3422.2,3421.6,0.8012]
[1732417311523,0.27027303,3422.1,3421.6,0.8012]
[1732417311727,0.27027303,3422.0,3421.6,0.8012]
[1732417311960,0.27027303,3421.9,3421.6,0.8012]
[1732417312167,0.27027303,3421.8,3421.6,0.8012]
[1732417312327,0.43244646,3422.1,3421.6,0.8012]
[1732417312661,2.79064244,3422.2,3421.6,0.8012]
[1732417312863,0.27025619,3422.1,3421.6,0.8012]
[1732417313067,0.27025619,3422.0,3421.6,0.8012]
[1732417313270,0.27025619,3421.9,3421.6,0.8012]
[1732417313438,0.27025619,3421.8,3421.6,0.8012]
[1732417313637,0.4324099,3422.1,3421.6,0.8012]
[1732417313871,0.27025659,3422.0,3421.6,0.8012]
[1732417314029,0.27025659,3421.9,3421.6,0.8012]
[1732417314231,0.27025659,3421.8,3421.6,0.8012]
[1732417314540,0.4324099,3422.1,3421.6,0.8012]
[1732417314744,0.27027065,3422.0,3421.6,0.8012]
[1732417315040,0.27027065,3421.9,3421.6,0.8012]
[1732417315234,0.27027065,3421.8,3421.6,0.8012]
[1732417315421,0.4324099,3422.1,3421.6,0.8012]
[1732417315621,0.27027744,3422.0,3421.6,0.8012]
[1732417315861,0.27027443,3421.9,3421.6,0.8012]
[1732417316071,0.27027443,3421.8,3421.6,0.8012]
[1732417316366,0.43243909,3422.1,3421.6,0.8012]
[1732417316552,0.27027795,3422.0,3421.6,0.8012]
[1732417316748,0.27027795,3421.9,3421.6,0.8012]
[1732417317053,0.27027795,3421.8,3421.6,0.8012]
[1732417317365,0.43243909,3422.1,3421.6,0.8012]
[1732417317578,2.79064244,3422.2,3421.6,0.8012]
[1732417317579,0.27028043,3422.0,3421.6,0.8012]
[1732417317864,0.27028043,3421.9,3421.6,0.8012]
[1732417318041,0.27028043,3421.8,3421.6,0.8012]
[1732417318247,3.22308153,3422.2,3421.6,0.8012]
[1732417318457,0.70272196,3422.1,3421.6,0.8012]
[1732417318745,0.27028287,3422.0,3421.6,0.8012]
[1732417318944,0.27028287,3421.9,3421.6,0.8012]
[1732417319128,0.27028287,3421.8,3421.6,0.8012]
[1732417319333,0.27028287,3422.0,3421.6,0.8012]
[1732417319563,0.43243909,3422.6,3421.6,0.8012]
[1732417319761,0.2703553,3422.5,3421.6,0.8012]
[1732417319938,0.2703553,3422.4,3421.6,0.8012]
[1732417320134,0.2703553,3422.3,3421.6,0.8012]
[1732417320364,0.2703553,3422.2,3421.3,0.8221]
[1732417320565,1.24253909,3422.7,3421.5,0.8221]
[1732417320873,0.27037496,3422.6,3421.5,0.8221]
[1732417321063,0.27037496,3422.5,3421.5,0.8221]
[1732417321264,0.27037496,3422.4,3421.7,0.8221]
[1732417321573,0.27037496,3422.3,3421.7,0.8221]
[1732417321780,0.27037496,3422.2,3421.7,0.8221]
[1732417321982,1.24271102,3422.7,3421.7,0.8221]
[1732417322281,0.70299642,3422.6,3421.7,0.8221]
[1732417322480,0.2703854,3422.5,3421.7,0.8221]
[1732417322776,0.2703854,3422.4,3421.7,0.8221]
[1732417322988,0.2703854,3422.3,3421.7,0.8221]
[1732417323147,0.2703854,3422.2,3421.7,0.8221]
[1732417323476,0.2703854,3422.1,3421.7,0.8221]
[1732417323649,0.43261102,3422.6,3421.7,0.8221]
[1732417323845,0.27041331,3422.5,3421.7,0.8221]
[1732417324048,0.27041331,3422.4,3421.7,0.8221]
[1732417324346,0.27041331,3422.3,3421.7,0.8221]
[1732417324552,0.27041331,3422.2,3421.7,0.8221]
[1732417324752,0.27041331,3422.1,3421.7,0.8221]
[1732417324977,0.27041331,3422.0,3421.7,0.8221]
[1732417325283,0.43261102,3422.6,3421.7,0.8221]
[1732417325487,0.8101,3422.7,3421.7,0.8221]
[1732417325780,0.70320276,3422.6,3421.7,0.8221]
[1732417326074,0.2704626,3422.5,3421.7,0.8221]
[1732417326278,0.2704626,3422.4,3421.7,0.8221]
[1732417326480,0.2704626,3422.3,3421.7,0.8221]
[1732417326664,0.43274016,3422.6,3421.7,0.8221]
[1732417326665,0.2704626,3422.2,3421.7,0.8221]
[1732417326866,0.2704626,3422.1,3421.7,0.8221]
[1732417327068,0.43274016,3422.6,3421.7,0.8221]
[1732417327268,0.70323468,3422.5,3421.7,0.8221]
[1732417327572,0.27049452,3422.4,3421.7,0.8221]
[1732417327767,0.27049452,3422.3,3421.7,0.8221]
[1732417327972,0.27049452,3422.2,3421.7,0.8221]
[1732417328191,0.27049452,3422.1,3421.7,0.8221]
[1732417328385,0.27049452,3422.0,3421.7,0.8221]
[1732417328593,0.43274016,3422.5,3421.7,0.8221]
[1732417328910,1.22640126,3422.3,3421.7,0.8221]
[1732417329106,0.27050419,3422.2,3421.7,0.8221]
[1732417329267,1.22640126,3422.3,3421.7,0.8221]
[1732417329466,0.27053934,3422.2,3421.7,0.8221]
[1732417329792,0.27053934,3422.1,3421.7,0.8221]
[1732417329967,1.22640126,3422.3,3421.7,0.8221]
[1732417330303,0.27052917,3422.2,3421.7,0.8221]
[1732417330614,0.27052917,3422.1,3421.7,0.8221]
[1732417330900,0.43286295,3422.6,3421.7,0.8221]
[1732417331109,1.22640126,3422.3,3421.7,0.8221]
[1732417331261,0.27053499,3422.2,3421.7,0.8221]
[1732417331461,0.27053499,3422.1,3421.7,0.8221]
[1732417331781,1.22640126,3422.3,3421.7,0.8221]
[1732417331992,0.27053406,3422.2,3421.7,0.8221]
[1732417332268,1.22640126,3422.3,3421.7,0.8221]
[1732417332269,0.27053406,3422.1,3421.7,0.8221]
[1732417332467,1.22640126,3422.3,3421.7,0.8221]
[1732417332709,0.27052599,3422.2,3421.7,0.8221]
[1732417332864,1.22640126,3422.3,3421.7,0.8221]
[1732417333269,0.2705314,3422.2,3421.7,0.8221]
[1732417333574,0.2705314,3422.1,3421.7,0.8221]
[1732417333805,0.2705314,3422.0,3421.7,0.8221]
[1732417333961,1.22640126,3422.3,3421.7,0.8221]
[1732417334168,1.22640126,3422.0,3421.7,0.8221]
[1732417335008,0.27049784,3421.9,3421.1,0.802]
[1732417335184,1.22640126,3421.5,3421.1,0.802]
[1732417335382,1.22532126,3421.5,3421.1,0.802]
[1732417335585,1.22504689,3421.5,3421.1,0.802]
[1732417337393,1.22640126,3422.2,3421.1,0.802]
[1732417337706,0.27046979,3422.1,3421.1,0.802]
[1732417338007,0.27046979,3422.0,3421.1,0.802]
[1732417338165,0.27046979,3421.9,3421.1,0.802]
[1732417338367,0.27046979,3421.8,3421.1,0.802]
[1732417338590,1.22640126,3421.9,3421.1,0.802]
[1732417338816,0.27050759,3421.8,3421.1,0.802]
[1732417338988,0.27050759,3421.7,3421.1,0.802]
[1732417339169,1.22640126,3421.9,3421.1,0.802]
[1732417339511,0.27048866,3421.8,3421.1,0.802]
[1732417339716,0.27048866,3421.7,3421.1,0.802]
[1732417339873,1.22640126,3421.9,3421.1,0.802]
[1732417340068,0.27049094,3421.8,3421.1,0.802]
[1732417340306,1.22640126,3422.5,3421.3,0.2909]
[1732417340603,0.2705206,3422.4,3421.4,0.8207]
[1732417340815,0.2705206,3422.3,3421.5,0.97728601]
[1732417341022,0.2705206,3422.2,3421.5,0.8207]
[1732417341201,0.43281803,3422.6,3421.5,0.8207]
[1732417341399,0.27051288,3422.5,3421.5,1.27496011]
[1732417341573,0.27051288,3422.4,3421.6,0.8207]
[1732417341773,2.78986047,3422.7,3421.6,0.8207]
[1732417342006,0.27054617,3422.6,3421.6,0.8207]
[1732417342214,0.27054617,3422.5,3421.6,0.8207]
[1732417342374,0.27050401,3422.4,3421.7,0.8207]
[1732417342578,2.78986047,3422.7,3421.7,0.8207]
[1732417342911,0.2705045,3422.6,3421.7,0.8207]
[1732417343157,0.2705045,3422.5,3421.7,0.8207]
[1732417343356,0.2705045,3422.6,3421.7,0.8207]
[1732417343512,0.27047481,3422.5,3421.7,0.8207]
[1732417343712,2.78986047,3422.7,3421.7,0.8207]
[1732417343965,0.27047887,3422.6,3421.7,0.8207]
[1732417344109,0.27047887,3422.5,3421.7,0.8207]
[1732417344311,2.78986047,3422.7,3421.7,0.8207]
[1732417344532,0.27048766,3422.6,3421.7,0.8207]
[1732417344741,0.27048766,3422.5,3421.7,0.8207]
[1732417345009,0.27048766,3422.4,3421.7,0.8207]
[1732417345210,2.78986047,3422.7,3421.7,0.8207]
[1732417345410,0.27054124,3422.6,3421.7,0.8207]
[1732417345638,0.27054124,3422.5,3421.7,0.8207]
[1732417345852,0.27054124,3422.4,3421.7,0.8207]
[1732417346151,2.78986047,3422.7,3421.7,0.8207]
[1732417346354,0.2706824,3422.6,3421.7,0.8207]
[1732417346547,0.2706824,3422.5,3421.7,0.8207]
[1732417346866,0.2706824,3422.4,3421.7,0.8207]
[1732417347150,2.78986047,3422.7,3421.7,0.8207]
[1732417347151,0.43308152,3422.6,3421.7,0.8207]
[1732417347449,0.27068527,3422.5,3421.7,0.8207]
[1732417347652,0.27068144,3422.4,3421.7,0.8207]
[1732417347850,2.78986047,3422.7,3421.7,0.8207]
[1732417348054,0.27068239,3422.6,3421.7,0.8207]
[1732417348267,0.27068239,3422.5,3421.7,0.8207]
[1732417348418,0.27068239,3422.6,3421.7,0.8207]
[1732417348625,2.78986047,3422.7,3421.7,0.8207]
[1732417348626,0.27068239,3422.5,3421.7,0.8207]
[1732417348935,2.78986047,3422.7,3421.7,0.8207]
[1732417348936,0.27068239,3422.4,3421.7,0.8207]
[1732417349135,0.43308184,3422.6,3421.7,0.8207]
[1732417349330,0.27067835,3422.5,3421.7,0.8207]
[1732417349637,0.27067835,3422.4,3421.7,0.8207]
[1732417349973,0.27067835,3422.3,3421.7,0.8207]
[1732417350254,0.43308184,3422.6,3421.1,0.45426011]
[1732417350469,0.27067913,3422.5,3421.8,0.8207]
[1732417350678,0.27067913,3422.4,3421.8,0.8207]
[1732417350852,0.27067913,3422.5,3421.8,0.8207]
[1732417351055,0.27068263,3422.4,3421.8,0.8207]
[1732417351245,0.43308184,3422.6,3421.8,0.8207]
[1732417351449,2.78986047,3422.7,3421.8,0.8207]
[1732417351450,0.27067881,3422.5,3421.8,0.8207]
[1732417351650,0.27067881,3422.4,3421.8,0.8207]
[1732417351889,2.78986047,3422.7,3421.8,0.8207]
[1732417352180,0.27067854,3422.6,3421.8,0.8207]
[1732417352381,0.27067854,3422.5,3421.8,0.8207]
[1732417352685,0.27067854,3422.4,3421.8,0.8207]
[1732417352849,2.78986047,3422.7,3421.8,0.8207]
[1732417353054,0.27067962,3422.6,3421.8,0.8207]
[1732417353264,0.27067962,3422.5,3421.8,0.8207]
[1732417353573,2.78986047,3422.7,3421.8,0.8207]
[1732417353773,0.27064214,3422.6,3421.8,0.8207]
[1732417353961,0.27064214,3422.5,3421.8,0.8207]
[1732417354284,2.78986047,3422.7,3421.8,0.8207]
[1732417354484,0.27063029,3422.6,3421.8,0.8207]
[1732417354648,0.27063029,3422.5,3421.8,0.8207]
[1732417354849,2.78986047,3422.7,3421.8,0.8207]
[1732417355079,0.27057535,3422.6,3421.8,0.8207]
[1732417355285,0.27057535,3422.5,3421.8,0.8207]
[1732417355452,2.78986047,3422.7,3421.8,0.8207]
[1732417355648,0.27050394,3422.6,3421.8,0.8207]
[1732417355845,0.27050394,3422.5,3421.8,0.8207]
[1732417356090,2.78986047,3422.7,3421.8,0.8207]
[1732417356390,0.27049008,3422.6,3421.8,0.8207]
[1732417356605,0.27049008,3422.5,3421.8,0.8207]
[1732417356883,2.78986047,3422.7,3421.8,0.8207]
[1732417357098,0.27042081,3422.6,3421.8,0.8207]
[1732417357280,0.22387081,3422.5,3421.8,0.8207]
[1732417357480,2.78986047,3422.7,3421.8,0.8207]
[1732417358321,2.78986047,3423.1,3421.8,0.8207]
[1732417358843,3.22253821,3423.1,3421.8,0.8207]
[1732417359139,0.43267774,3423.1,3421.9,0.7988]
[1732417359440,0.43267774,3423.4,3422.2,1.0897]
[1732417359613,2.00677774,3423.8,3422.3,0.7988]
[1732417359803,3.46746899,3423.8,3422.5,0.7988]
[1732417360003,0.43267774,3423.7,3422.5,0.7988]
[1732417360503,2.00677774,3423.8,3422.3,0.7988]
[1732417360735,1.22571434,3423.3,3422.5,0.7988]
[1732417361038,1.22425325,3423.3,3422.5,0.7988]
[1732417362854,4.3623847,3423.8,3422.5,0.7988]
[1732417363016,0.43222497,3423.7,3422.5,0.7988]
[1732417366168,0.43198659,3423.7,3422.5,0.7988]
[1732417366475,3.5656847,3423.8,3422.5,0.7988]
[1732417366627,0.43204412,3423.7,3422.5,0.7988]
[1732417367941,2.7882847,3423.8,3422.6,0.8037]
[1732417368350,0.43214745,3423.9,3422.8,0.8037]
[1732417368551,2.7882847,3424.2,3423.0,0.8037]
[1732417368552,3.22044029,3424.2,3423.0,0.8037]
[1732417368737,3.22044029,3424.2,3422.9,0.15780743]
[1732417368738,3.22044029,3424.2,3422.9,0.61206754]
[1732417368938,3.22044029,3424.2,3422.9,0.45426011]
[1732417368939,2.7882847,3424.2,3422.9,0.45426011]
[1732417369264,0.8037,3424.2,3422.9,0.45426011]
[1732417369469,0.27007638,3424.1,3422.9,0.45426011]
[1732417369766,0.8037,3424.2,3422.9,0.45426011]
[1732417369956,0.27008794,3424.1,3422.9,0.45426011]
[1732417370151,1.28096,3424.5,3422.9,0.45426011]
[1732417370379,0.26998566,3424.4,3422.9,0.45426011]
[1732417370535,0.26998566,3424.3,3422.9,0.45426011]
[1732417370875,1.28096,3424.5,3422.9,0.45426011]
[1732417370876,0.26998566,3424.2,3422.9,0.45426011]
[1732417371042,0.26998566,3424.1,3422.9,0.45426011]
[1732417371368,1.28096,3424.5,3422.9,0.45426011]
[1732417371583,0.26996848,3424.4,3422.9,0.45426011]
[1732417371868,0.26996848,3424.3,3423.0,0.8037]
[1732417372039,0.26996848,3424.4,3423.0,0.8037]
[1732417372226,0.8267,3424.2,3423.0,0.8037]
[1732417372427,0.26996848,3424.1,3423.0,0.8037]
[1732417372626,0.26996848,3424.0,3423.0,0.8037]
[1732417372865,1.25855691,3424.2,3423.0,0.8037]
[1732417373068,0.26991188,3424.1,3423.0,0.8037]
[1732417373380,0.26991188,3424.0,3423.0,0.8037]
[1732417373530,0.26991188,3424.1,3423.0,0.8037]
[1732417373734,0.26991188,3424.0,3423.0,0.8037]
[1732417374031,0.26991188,3423.9,3423.0,0.8037]
[1732417374375,1.25855691,3424.2,3423.0,0.8037]
[1732417374529,0.26986301,3424.1,3423.0,0.8037]
[1732417374732,0.26986301,3424.0,3423.0,0.8037]
[1732417374932,0.26986301,3423.9,3423.0,0.8037]
[1732417375157,1.25855691,3424.2,3423.0,0.8037]
[1732417375390,0.26985616,3424.1,3423.0,0.8037]
[1732417375564,0.26985616,3424.0,3423.0,0.8037]
[1732417375770,0.26985616,3423.9,3423.0,0.8037]
[1732417375933,1.25855691,3424.2,3423.0,0.8037]
[1732417376270,0.26985116,3424.1,3423.0,0.8037]
[1732417376449,0.26985116,3424.0,3423.0,0.8037]
[1732417376633,0.26985116,3423.9,3423.0,0.8037]
[1732417376838,1.25855691,3424.2,3423.0,0.8037]
[1732417377058,0.26982556,3424.1,3423.0,0.8037]
[1732417377259,0.26982556,3424.0,3423.0,0.8037]
[1732417377565,0.26982556,3423.9,3423.0,0.8037]
[1732417377895,1.25855691,3424.2,3423.0,0.8037]
[1732417378116,0.26981299,3424.1,3423.0,0.8037]
[1732417378272,0.26981299,3424.0,3423.0,0.8037]
[1732417378471,0.26981299,3423.9,3423.0,0.8037]
[1732417378684,1.25855691,3424.2,3423.0,0.8037]
[1732417378890,0.26982567,3424.1,3423.0,0.8037]
[1732417379190,0.26982567,3424.0,3423.0,0.8037]
[1732417379402,0.26982567,3423.9,3423.0,0.8037]
[1732417379569,1.25855691,3424.2,3423.0,0.8037]
[1732417379769,0.26985237,3424.1,3423.0,0.8037]
[1732417380008,0.26985237,3424.0,3423.0,0.8037]
[1732417380298,0.26985237,3423.9,3423.0,0.8037]
[1732417380505,0.43185691,3424.2,3423.1,0.7819]
[1732417380792,0.26988368,3424.1,3423.1,0.7819]
[1732417380959,0.26988368,3424.0,3423.1,0.7819]
[1732417381295,0.26988368,3423.9,3423.1,0.7819]
[1732417381462,3.22009859,3424.3,3423.1,0.7819]
[1732417381663,0.70170227,3424.2,3423.1,0.7819]
[1732417381973,0.26988838,3424.1,3423.1,0.7819]
[1732417382172,0.26988838,3424.0,3423.1,0.7819]
[1732417382484,3.05817308,3423.9,3423.1,0.7819]
[1732417382711,0.26988838,3423.8,3423.1,0.7819]
[1732417383760,0.26988838,3423.8,3423.7,0.02652395]
[1732417390509,1.49523033,3423.8,3423.7,0.02652395]
[1732417392481,0.26988838,3423.8,3423.7,0.02652395]
[1732417392720,1.22534195,3424.2,3423.8,0.7819]
[1732417392920,0.27070193,3424.1,3423.8,0.7819]
[1732417393119,0.27070193,3424.0,3423.8,0.7819]
[1732417393424,0.27070193,3423.9,3423.8,0.7819]
[1732417394325,1.49604388,3423.9,3423.8,0.7819]